bitfinex/quotes_BTCUSD_20240101
["timestamp","ask_amount","ask_price","bid_price","bid_amount"]
[1704152056411,0.23321711,44049.0,44048.0,0.3]
[1704152058824,0.23321711,44049.0,44048.0,0.47626425]
[1704152059228,0.23321711,44049.0,44048.0,0.337]
[1704152060466,0.33321711,44049.0,44048.0,0.337]
[1704152061311,0.33321711,44049.0,44048.0,0.3817]
[1704152061449,0.33321711,44049.0,44048.0,0.54022286]
[1704152062013,0.33321711,44049.0,44048.0,0.3817]
[1704152062147,0.33321711,44049.0,44048.0,0.54022286]
[1704152062350,0.33321711,44049.0,44048.0,0.3817]
[1704152063342,0.33321711,44049.0,44048.0,0.54022286]
[1704152063786,0.33321711,44049.0,44048.0,0.3817]
[1704152064395,0.43321711,44049.0,44048.0,0.3817]
[1704152064658,0.49825711,44049.0,44048.0,0.0817]
[1704152065020,0.49825711,44049.0,44048.0,0.18742134]
[1704152065246,0.43321711,44049.0,44048.0,0.0817]
[1704152065417,0.33321711,44049.0,44048.0,0.0817]
[1704152065747,0.50779711,44049.0,44048.0,0.15041563]
[1704152065949,0.50779711,44049.0,44048.0,0.19583929]
[1704152066154,0.48481711,44049.0,44048.0,0.19583929]
[1704152066498,0.48481711,44049.0,44048.0,0.18740977]
[1704152066698,0.48481711,44049.0,44048.0,0.16940977]
[1704152067184,0.43321711,44049.0,44048.0,0.15040977]
[1704152067337,0.43321711,44049.0,44048.0,0.0447]
[1704152067547,0.43321711,44049.0,44048.0,0.18580086]
[1704152067720,0.49531711,44049.0,44048.0,0.18580086]
[1704152067924,0.49531711,44049.0,44048.0,0.17839238]
[1704152068184,0.69531711,44049.0,44048.0,0.15197372]
[1704152068355,0.69531711,44049.0,44048.0,0.0727]
[1704152068563,0.73733711,44049.0,44048.0,0.0727]
[1704152068776,0.73527711,44049.0,44048.0,0.0727]
[1704152068987,0.63527711,44049.0,44048.0,0.0727]
[1704152069608,0.60911711,44049.0,44048.0,0.0727]
[1704152070259,0.50911711,44049.0,44048.0,0.0727]
[1704152070885,0.48523711,44049.0,44048.0,0.0727]
[1704152071494,0.48523711,44049.0,44048.0,0.15197372]
[1704152072935,0.43321711,44049.0,44048.0,0.15197372]
[1704152073103,0.48727711,44049.0,44048.0,0.15197372]
[1704152073743,0.48727711,44049.0,44048.0,0.17839238]
[1704152073938,0.33321711,44049.0,44048.0,0.17839238]
[1704152074256,0.38415711,44049.0,44048.0,0.17839238]
[1704152075010,0.48415711,44049.0,44048.0,0.17836299]
[1704152075210,0.48415711,44049.0,44048.0,0.20480086]
[1704152076502,0.50599711,44049.0,44048.0,0.17836341]
[1704152078472,0.83307711,44049.0,44048.0,0.0727]
[1704152078594,0.83307711,44049.0,44048.0,0.049749]
[1704152079399,0.83307711,44049.0,44048.0,0.02226142]
[1704152079604,0.2,44042.0,44041.0,0.07926054]
[1704152079927,0.3,44041.0,44040.0,0.07926054]
[1704152080179,0.53321711,44041.0,44040.0,0.02734444]
[1704152080398,0.61733711,44041.0,44040.0,0.02734444]
[1704152080585,0.61733711,44041.0,44038.0,0.12707951]
[1704152080586,0.3,44039.0,44038.0,0.12707951]
[1704152080793,0.3,44039.0,44038.0,0.15351696]
[1704152080794,0.53321711,44039.0,44038.0,0.15351696]
[1704152080910,0.60293711,44039.0,44038.0,0.15351696]
[1704152081312,0.60293711,44039.0,44038.0,0.0214161]
[1704152081519,0.60293711,44039.0,44038.0,0.12711248]
[1704152081722,0.70293711,44039.0,44038.0,0.10569638]
[1704152082137,0.70493711,44039.0,44038.0,0.09727742]
[1704152082349,0.70493711,44039.0,44038.0,0.018]
[1704152082552,0.80207711,44039.0,44038.0,0.018]
[1704152082759,0.73981711,44039.0,44038.0,0.018]
[1704152083145,0.63235711,44039.0,44038.0,0.018]
[1704152083367,0.72943711,44039.0,44038.0,0.018]
[1704152083544,0.63235711,44039.0,44038.0,0.018]
[1704152083951,0.63335711,44039.0,44038.0,0.026]
[1704152084351,0.63135711,44039.0,44038.0,0.008]
[1704152084738,0.73253711,44039.0,44038.0,0.026]
[1704152085388,0.63335711,44039.0,44038.0,0.026]
[1704152085561,0.73335711,44039.0,44038.0,0.026]
[1704152085768,0.82353711,44039.0,44038.0,0.026]
[1704152087218,0.53321711,44034.0,44033.0,0.02737887]
[1704152087397,0.53321711,44034.0,44032.0,0.17012542]
[1704152087398,0.3,44033.0,44032.0,0.090848]
[1704152087596,0.53321711,44033.0,44032.0,0.090848]
[1704152087801,0.2,44032.0,44031.0,0.07927742]
[1704152088000,0.53321711,44032.0,44031.0,0.07927742]
[1704152088199,0.2,44031.0,44030.0,0.32771392]
[1704152088432,0.53321711,44031.0,44030.0,0.10690953]
[1704152088603,0.61979711,44031.0,44030.0,0.10690953]
[1704152088804,0.61979711,44031.0,44030.0,0.02771392]
[1704152089012,0.61979711,44031.0,44030.0,0.10690953]
[1704152089304,0.61979711,44031.0,44030.0,0.05278714]
[1704152089507,0.62179711,44031.0,44030.0,0.06978714]
[1704152089695,0.62179711,44031.0,44030.0,0.017]
[1704152089896,0.62179711,44031.0,44030.0,0.06978698]
[1704152090336,0.62179711,44031.0,44030.0,0.017]
[1704152090805,0.81569711,44031.0,44030.0,0.017]
[1704152091236,0.86283711,44031.0,44030.0,0.017]
[1704152092271,0.2,44021.0,44020.0,0.4513]
[1704152092479,0.64680711,44021.0,44020.0,0.4513]
[1704152092709,0.3,44020.0,44019.0,0.05278698]
[1704152092930,0.53321711,44020.0,44019.0,0.090876]
[1704152093136,0.1,44014.0,44013.0,0.05278698]
[1704152093341,0.1,44014.0,44012.0,0.67079199]
[1704152093342,0.2,44013.0,44012.0,0.4859]
[1704152093551,0.43321711,44013.0,44012.0,0.4859]
[1704152093763,0.60208711,44013.0,44012.0,0.51295414]
[1704152093960,0.54682711,44013.0,44012.0,0.51295414]
[1704152094167,0.70562711,44013.0,44012.0,0.60383914]
[1704152094372,0.54682711,44013.0,44012.0,0.60383914]
[1704152094580,0.60424711,44013.0,44012.0,0.90383914]
[1704152094987,0.60624711,44013.0,44012.0,0.92183914]
[1704152095248,0.60624711,44013.0,44012.0,0.93583914]
[1704152095249,0.60824711,44013.0,44012.0,0.93583914]
[1704152095866,0.70624711,44013.0,44012.0,0.61783914]
[1704152096066,0.73114711,44013.0,44012.0,0.61783914]
[1704152096914,0.43114711,44013.0,44012.0,0.61783914]
[1704152097123,0.45314711,44013.0,44012.0,0.61783914]
[1704152097534,0.45414711,44013.0,44012.0,0.63083914]
[1704152097757,0.35414711,44013.0,44012.0,0.63083914]
[1704152097966,0.22583424,44013.0,44012.0,0.93083914]
[1704152098586,0.22583424,44013.0,44012.0,0.49772612]
[1704152098587,0.22321939,44013.0,44012.0,0.49772612]
[1704152098791,0.22321939,44013.0,44012.0,0.48472612]
[1704152099038,0.22321939,44013.0,44012.0,0.49713475]
[1704152099239,0.22321939,44013.0,44012.0,0.51513475]
[1704152099431,0.22521939,44013.0,44012.0,0.53313475]
[1704152099638,0.22521939,44013.0,44012.0,0.53213475]
[1704152100568,0.22321939,44013.0,44012.0,0.51413475]
[1704152100774,0.22521939,44013.0,44012.0,0.51413475]
[1704152101177,0.22521939,44013.0,44012.0,0.45293914]
[1704152101582,0.19921694,44013.0,44012.0,0.45293914]
[1704152101829,0.19921694,44013.0,44012.0,0.56293914]
[1704152101830,0.15712021,44013.0,44012.0,0.56293914]
[1704152102248,4.92991461,44027.0,44018.0,0.01]
[1704152102454,4.92991461,44027.0,44020.0,0.05263386]
[1704152102681,4.92991461,44027.0,44020.0,0.3]
[1704152103062,4.7027313,44027.0,44020.0,0.3]
[1704152103471,4.7027313,44027.0,44020.0,0.40526772]
[1704152104256,4.7028013,44027.0,44021.0,0.10526772]
[1704152104460,4.7028013,44027.0,44022.0,0.3]
[1704152104702,4.7028013,44027.0,44022.0,0.40526772]
[1704152105321,4.7028013,44027.0,44023.0,0.10526772]
[1704152105525,4.7028013,44027.0,44024.0,0.3]
[1704152106336,0.02076176,44025.0,44024.0,0.3]
[1704152106570,0.02076176,44025.0,44022.0,0.3]
[1704152106776,4.7028013,44027.0,44022.0,0.3]
[1704152107061,0.02057224,44023.0,44022.0,0.3]
[1704152107269,0.22057224,44023.0,44022.0,0.019]
[1704152107404,0.22057224,44023.0,44022.0,0.037]
[1704152107742,0.22057224,44023.0,44022.0,0.019]
[1704152107946,0.12057224,44023.0,44019.0,0.3]
[1704152108083,0.33321711,44020.0,44019.0,0.3]
[1704152108289,0.26321711,44020.0,44019.0,0.3]
[1704152108732,0.26321711,44020.0,44019.0,0.32686406]
[1704152109110,0.36321711,44020.0,44019.0,0.32686406]
[1704152109312,0.40827711,44020.0,44019.0,0.02686406]
[1704152109511,0.37821697,44020.0,44019.0,0.02686406]
[1704152109720,0.2,44019.0,44018.0,2.30381327]
[1704152109920,0.43321711,44019.0,44018.0,2.30381327]
[1704152110566,0.43321711,44019.0,44018.0,0.3]
[1704152110773,0.43321711,44019.0,44018.0,0.316]
[1704152111243,0.43321711,44019.0,44018.0,0.334]
[1704152111555,0.43321711,44019.0,44018.0,0.36177386]
[1704152111758,0.48427711,44019.0,44018.0,0.06177386]
[1704152112376,0.59785711,44019.0,44018.0,0.06177386]
[1704152112587,0.62137711,44019.0,44018.0,0.06177386]
[1704152112767,0.72137711,44019.0,44018.0,0.06177386]
[1704152112992,0.72137711,44019.0,44018.0,0.034]
[1704152113390,0.82137711,44019.0,44018.0,0.034]
[1704152113593,0.92061711,44019.0,44018.0,0.034]
[1704152114022,0.3,44013.0,44012.0,0.05191967]
[1704152114228,0.53321711,44013.0,44012.0,0.05191967]
[1704152114482,0.59009711,44013.0,44012.0,0.05191967]
[1704152115004,0.62099711,44013.0,44012.0,0.05191967]
[1704152115244,0.72299711,44013.0,44012.0,0.06991967]
[1704152115465,0.82031711,44013.0,44012.0,0.018]
[1704152116314,1.12031711,44013.0,44012.0,0.036]
[1704152116516,1.12031711,44013.0,44004.0,0.052749]
[1704152116517,0.3,44005.0,44004.0,0.352749]
[1704152116717,0.53321711,44005.0,44004.0,0.052749]
[1704152116948,0.74684711,44005.0,44004.0,0.052749]
[1704152117171,0.74684711,44005.0,44004.0,0.02698563]
[1704152117172,0.93740711,44005.0,44004.0,0.02698563]
[1704152117370,0.4,44004.0,44003.0,0.02926]
[1704152117646,0.4,44004.0,43996.0,0.02]
[1704152117647,0.3,43997.0,43996.0,0.02]
[1704152117862,0.63321711,43997.0,43996.0,0.02]
[1704152118332,0.83135711,43997.0,43996.0,0.04926]
[1704152118536,0.83135711,43997.0,43996.0,0.02]
[1704152118950,0.92525711,43997.0,43996.0,0.02]
[1704152119567,0.7,43996.0,43995.0,0.02750408]
[1704152119688,0.4,43994.0,43993.0,0.02915]
[1704152119887,0.63321711,43994.0,43993.0,0.02915]
[1704152120294,0.7,43992.0,43991.0,0.0022]
[1704152120506,0.93321711,43992.0,43991.0,0.0022]
[1704152120708,1.16049711,43992.0,43991.0,0.0022]
[1704152121124,0.70467711,43992.0,43991.0,0.0022]
[1704152121566,0.70567711,43992.0,43991.0,0.0162]
[1704152122022,0.80035711,43992.0,43991.0,0.0162]
[1704152122428,0.83437711,43992.0,43991.0,0.0162]
[1704152122849,0.83537711,43992.0,43991.0,0.0212]
[1704152123375,0.74069711,43992.0,43991.0,0.0212]
[1704152123693,0.83477711,43992.0,43991.0,0.0212]
[1704152124114,0.74069711,43992.0,43991.0,0.0212]
[1704152124542,0.83795711,43992.0,43991.0,0.0212]
[1704152124750,1.71190309,43973.0,43971.0,0.02926]
[1704152124947,0.23321711,43972.0,43971.0,2.33307327]
[1704152125380,0.21310855,43972.0,43971.0,2.34307327]
[1704152125977,0.21310855,43972.0,43971.0,2.35607327]
[1704152126380,0.21310855,43972.0,43971.0,2.43401027]
[1704152126580,1.71190309,43973.0,43972.0,0.01]
[1704152126581,1.69759452,43973.0,43972.0,0.01]
[1704152126980,1.69759452,43973.0,43972.0,0.31]
[1704152127541,1.4701774,43973.0,43972.0,0.31]
[1704152127942,1.4721774,43973.0,43972.0,0.301]
[1704152128148,1.24476512,43973.0,43972.0,0.301]
[1704152128376,1.2264161,43973.0,43972.0,0.311]
[1704152128591,1.2264161,43973.0,43972.0,0.313]
[1704152128791,1.46163321,43973.0,43972.0,0.323]
[1704152128994,1.23422093,43973.0,43972.0,0.323]
[1704152129234,1.23422093,43973.0,43972.0,0.313]
[1704152129639,1.00680865,43973.0,43972.0,0.323]
[1704152129839,0.97319546,43973.0,43972.0,0.323]
[1704152130443,0.74578318,43973.0,43972.0,0.323]
[1704152130938,0.1,43982.0,43976.0,0.01]
[1704152130939,0.23321711,43980.0,43976.0,0.01]
[1704152131285,0.23321711,43980.0,43977.0,0.09328685]
[1704152131453,0.1,43982.0,43976.0,0.01]
[1704152131813,0.33321711,43978.0,43972.0,0.001]
[1704152132255,0.33321711,43978.0,43976.0,0.013]
[1704152132461,0.3053698,43978.0,43976.0,0.013]
[1704152132688,0.3053698,43978.0,43973.0,0.00614582]
[1704152132919,0.3073698,43978.0,43977.0,0.00611139]
[1704152133146,0.3073698,43978.0,43976.0,0.002]
[1704152133380,0.3053698,43978.0,43977.0,0.00611139]
[1704152133608,0.33321711,43978.0,43977.0,0.02911139]
[1704152133832,0.43721711,43978.0,43977.0,0.023]
[1704152134059,0.43721711,43978.0,43977.0,0.03080451]
[1704152134491,0.43521711,43978.0,43977.0,0.00780451]
[1704152134952,0.43521711,43978.0,43977.0,0.00980451]
[1704152135155,0.43521711,43978.0,43977.0,0.02280451]
[1704152135424,0.43721711,43978.0,43977.0,0.02280451]
[1704152135643,0.43521711,43978.0,43977.0,0.00980451]
[1704152136122,0.43621711,43978.0,43977.0,0.02080451]
[1704152137233,0.58163711,43978.0,43977.0,0.02080451]
[1704152137682,0.60539711,43978.0,43977.0,0.02080451]
[1704152138127,0.70539711,43978.0,43977.0,0.0478819]
[1704152138331,0.70539711,43978.0,43977.0,0.02080451]
[1704152139129,0.70539711,43978.0,43977.0,0.013]
[1704152139676,0.53621711,43978.0,43977.0,0.013]
[1704152140748,0.53621711,43978.0,43977.0,0.02084889]
[1704152140953,0.58733711,43978.0,43977.0,0.02084889]
[1704152142031,0.58733711,43978.0,43972.0,0.22084889]
[1704152142032,0.1,43973.0,43972.0,0.22084889]
[1704152142267,0.43321711,43973.0,43972.0,0.22084889]
[1704152142509,0.53321711,43973.0,43972.0,0.22084889]
[1704152142741,0.43321711,43973.0,43972.0,0.22084889]
[1704152142964,0.53321711,43973.0,43972.0,0.22084889]
[1704152143171,0.58597711,43973.0,43972.0,0.22384889]
[1704152143822,0.58797711,43973.0,43972.0,0.22484889]
[1704152144025,0.58597711,43973.0,43972.0,0.22384889]
[1704152144281,0.71717711,43973.0,43972.0,0.22384889]
[1704152144488,0.71717711,43973.0,43972.0,0.001]
[1704152144489,0.80753711,43973.0,43972.0,0.001]
[1704152144690,0.80753711,43973.0,43972.0,0.304]
[1704152144890,0.80953711,43973.0,43972.0,0.304]
[1704152145316,0.80753711,43973.0,43972.0,0.001]
[1704152145533,0.80653711,43973.0,43972.0,0.003]
[1704152145706,0.84343711,43973.0,43972.0,0.003]
[1704152145907,0.84443711,43973.0,43972.0,0.004]
[1704152146110,0.4,43972.0,43971.0,0.02926]
[1704152146414,0.63321711,43972.0,43971.0,0.02926]
[1704152146628,0.71145711,43972.0,43971.0,0.02926]
[1704152147463,0.61245711,43972.0,43971.0,0.03026]
[1704152147668,0.59109711,43972.0,43971.0,0.03026]
[1704152147900,0.59309711,43972.0,43971.0,0.03026]
[1704152148160,0.53621711,43972.0,43971.0,0.03026]
[1704152148365,0.43621711,43972.0,43971.0,0.03026]
[1704152148991,0.43421711,43972.0,43971.0,0.03026]
[1704152149400,0.43421711,43972.0,43971.0,0.03226]
[1704152149628,0.43621711,43972.0,43971.0,0.03926]
[1704152149835,0.43621711,43972.0,43971.0,0.04667167]
[1704152150047,0.43421711,43972.0,43971.0,0.03967167]
[1704152150254,0.43321711,43972.0,43971.0,0.04667167]
[1704152150679,0.43221711,43972.0,43971.0,0.04367167]
[1704152151130,0.43321711,43972.0,43971.0,0.04667167]
[1704152151589,0.43221711,43972.0,43971.0,0.04367167]
[1704152151799,0.43321711,43972.0,43971.0,0.04667167]
[1704152154519,0.49945711,43972.0,43971.0,0.04667167]
[1704152155626,0.59945711,43972.0,43971.0,0.04667167]
[1704152156250,0.69945711,43972.0,43971.0,0.04667167]
[1704152160370,0.53321711,43972.0,43971.0,0.04667167]
[1704152160579,0.58421711,43972.0,43971.0,0.04667167]
[1704152161667,0.60749711,43972.0,43971.0,0.04667167]
[1704152163648,0.48925711,43972.0,43971.0,0.04667167]
[1704152163846,0.58725711,43972.0,43971.0,0.04667167]
[1704152168312,0.58725711,43972.0,43971.0,0.09970236]
[1704152168507,0.51725711,43972.0,43971.0,0.39970236]
[1704152169119,0.51725711,43972.0,43971.0,0.34667167]
[1704152171014,0.61725711,43972.0,43971.0,0.34667167]
[1704152171226,0.75165711,43972.0,43971.0,0.09972004]
[1704152171423,0.75165711,43972.0,43971.0,0.04667167]
[1704152173147,1.0557694,43972.0,43971.0,0.04667167]
[1704152173661,1.0557694,43972.0,43971.0,0.09232562]
[1704152174090,1.0557694,43972.0,43970.0,0.07957255]
[1704152174091,0.325,43971.0,43970.0,0.04949271]
[1704152174295,0.335,43969.0,43968.0,0.10883255]
[1704152174511,0.56821711,43969.0,43968.0,0.02926]
[1704152174712,0.82753711,43969.0,43968.0,0.02926]
[1704152174862,0.82753711,43969.0,43968.0,0.10883255]
[1704152175293,0.82753711,43969.0,43968.0,0.10888025]
[1704152175701,0.96565711,43969.0,43968.0,0.02926]
[1704152175896,0.95565711,43969.0,43968.0,0.02926]
[1704152176104,1.1216494,43969.0,43968.0,0.02926]
[1704152176276,1.2598894,43969.0,43968.0,0.02926]
[1704152176475,0.625,43968.0,43967.0,0.01049534]
[1704152176679,0.85821711,43968.0,43967.0,0.09011559]
[1704152176962,1.27077711,43968.0,43967.0,0.01049534]
[1704152177331,1.27077711,43968.0,43967.0,0.09011559]
[1704152177532,1.27577711,43968.0,43967.0,0.01049534]
[1704152177733,1.28677711,43968.0,43967.0,0.01049534]
[1704152178608,1.28677711,43968.0,43963.0,0.10606734]
[1704152178609,0.325,43965.0,43964.0,0.07962025]
[1704152178817,0.325,43963.0,43962.0,0.10606734]
[1704152179030,0.325,43962.0,43961.0,0.10606734]
[1704152179237,0.55821711,43962.0,43961.0,0.10606734]
[1704152179457,0.81765711,43962.0,43961.0,0.07962989]
[1704152179691,0.325,43961.0,43960.0,0.10606734]
[1704152179877,0.325,43961.0,43959.0,0.13170151]
[1704152179878,0.325,43960.0,43959.0,0.10606734]
[1704152180079,0.85821711,43960.0,43959.0,0.10606734]
[1704152180281,1.19759711,43960.0,43959.0,0.0796311]
[1704152180503,1.19759711,43960.0,43958.0,0.10889575]
[1704152180504,0.335,43959.0,43958.0,0.10889575]
[1704152180660,0.56821711,43959.0,43958.0,0.02926]
[1704152181078,0.81793711,43959.0,43958.0,0.02926]
[1704152181282,0.81793711,43959.0,43958.0,0.10889575]
[1704152181489,0.81793711,43959.0,43958.0,0.02926]
[1704152182012,0.81793711,43959.0,43958.0,0.03607675]
[1704152182295,0.335,43958.0,43957.0,0.02926]
[1704152182487,0.55821711,43958.0,43957.0,0.02926]
[1704152182689,0.23321711,43958.0,43957.0,0.02926]
[1704152182903,0.53105711,43958.0,43957.0,0.16096151]
[1704152183290,0.53105711,43958.0,43957.0,0.16186454]
[1704152183485,0.43905711,43958.0,43957.0,0.02926]
[1704152183659,0.31405711,43958.0,43957.0,0.02926]
[1704152183861,0.43905711,43958.0,43957.0,0.02926]
[1704152184698,0.44005711,43958.0,43957.0,0.02926]
[1704152184901,0.44005711,43958.0,43957.0,0.16180958]
[1704152185159,0.52199711,43958.0,43957.0,0.32926]
[1704152185363,0.52199711,43958.0,43957.0,0.46180958]
[1704152185577,0.43305711,43958.0,43957.0,0.33026]
[1704152186079,0.43305711,43958.0,43957.0,0.03026]
[1704152186254,0.63505711,43958.0,43957.0,0.03026]
[1704152186490,0.66719711,43958.0,43957.0,0.02926]
[1704152186851,0.66719711,43958.0,43957.0,0.03026]
[1704152186852,0.66819711,43958.0,43957.0,0.03026]
[1704152187079,0.66919711,43958.0,43957.0,0.03026]
[1704152187532,0.56719711,43958.0,43957.0,0.03026]
[1704152187712,0.53671711,43958.0,43957.0,0.18928899]
[1704152187941,0.53671711,43958.0,43957.0,0.48928899]
[1704152188345,0.43671711,43958.0,43957.0,0.48928899]
[1704152188995,0.53671711,43958.0,43957.0,0.48928899]
[1704152189201,0.53671711,43958.0,43957.0,0.33026]
[1704152189202,0.64585711,43958.0,43957.0,0.33026]
[1704152189929,0.64585711,43958.0,43957.0,0.33578055]
[1704152190970,0.67885711,43958.0,43957.0,0.03578055]
[1704152191185,0.67885711,43958.0,43957.0,0.33578055]
[1704152191378,0.43245711,43958.0,43957.0,0.33578055]
[1704152191580,0.40745711,43958.0,43957.0,0.49480954]
[1704152191777,0.40745711,43958.0,43957.0,0.33578055]
[1704152192204,0.40745711,43958.0,43957.0,0.06266393]
[1704152192641,0.38999711,43958.0,43957.0,0.06266393]
[1704152192788,0.33521711,43958.0,43957.0,0.36266393]
[1704152193221,0.23321711,43958.0,43957.0,0.36266393]
[1704152193428,0.23321711,43958.0,43957.0,0.38566393]
[1704152193429,0.05761711,43958.0,43957.0,0.38566393]
[1704152193795,0.05761711,43958.0,43957.0,0.39566393]
[1704152194243,0.05761711,43958.0,43957.0,0.09566393]
[1704152194444,0.05761711,43958.0,43957.0,0.09466393]
[1704152194662,0.06161711,43958.0,43957.0,0.11166393]
[1704152194869,0.05961711,43958.0,43957.0,0.40066393]
[1704152195074,0.05761711,43958.0,43957.0,0.39466393]
[1704152195289,0.0471,43966.0,43960.0,0.075]
[1704152195497,0.1,43968.0,43961.0,0.023]
[1704152195498,0.06782772,43965.0,43961.0,0.023]
[1704152195707,0.06782772,43965.0,43961.0,0.0284571]
[1704152195910,0.06782772,43965.0,43961.0,0.4034571]
[1704152196143,0.06782772,43965.0,43962.0,0.075]
[1704152196349,0.13,43978.0,43967.0,0.075]
[1704152196350,0.1,43975.0,43967.0,0.075]
[1704152196569,0.1,43975.0,43973.0,0.23455071]
[1704152196570,0.03217228,43975.0,43973.0,0.23455071]
[1704152196779,0.03217228,43975.0,43974.0,0.3]
[1704152196907,0.03217228,43975.0,43974.0,0.32838224]
[1704152197129,0.03217228,43975.0,43974.0,0.56293295]
[1704152197338,0.08425228,43975.0,43974.0,0.56288934]
[1704152197566,0.08425228,43975.0,43974.0,0.32838224]
[1704152197762,0.08425228,43975.0,43974.0,0.56288934]
[1704152198032,0.08525228,43975.0,43974.0,0.57288934]
[1704152198234,0.08525228,43975.0,43974.0,0.57588934]
[1704152198389,0.29413275,43975.0,43974.0,0.57588934]
[1704152199252,0.24205275,43975.0,43974.0,0.57588934]
[1704152199400,0.20988047,43975.0,43974.0,0.34138224]
[1704152199602,0.23321711,43975.0,43974.0,0.04138224]
[1704152199813,0.10211711,43975.0,43974.0,0.04138224]
[1704152200214,0.05382,43981.0,43978.0,0.14282772]
[1704152200444,0.03217228,43985.0,43974.0,0.04138224]
[1704152200445,0.04422,43983.0,43980.0,0.23427974]
[1704152200648,0.12157019,43982.0,43981.0,0.53427974]
[1704152200851,0.05202,43984.0,43981.0,0.25727974]
[1704152201077,0.23321711,43983.0,43982.0,0.323]
[1704152201495,0.23321711,43983.0,43982.0,0.32830555]
[1704152201704,0.03217228,43993.0,43983.0,0.06782772]
[1704152201945,0.23321711,43992.0,43988.0,0.15856493]
[1704152202159,0.32118939,43992.0,43990.0,0.15856493]
[1704152202275,0.34618939,43992.0,43991.0,0.43203991]
[1704152202485,0.48290939,43992.0,43991.0,0.38440464]
[1704152202702,0.35790939,43992.0,43991.0,0.30516926]
[1704152202931,0.33198939,43992.0,43991.0,0.41081643]
[1704152203144,0.33198939,43992.0,43991.0,0.30516926]
[1704152203366,0.23321711,43992.0,43991.0,0.43374863]
[1704152203597,0.23321711,43992.0,43991.0,0.32816926]
[1704152203828,0.23421711,43992.0,43991.0,0.44674522]
[1704152204246,0.03217228,43996.0,43991.0,0.35527636]
[1704152204442,0.23321711,43995.0,43993.0,0.10547947]
[1704152204654,0.08545228,44000.0,43994.0,0.42847947]
[1704152204856,0.23321711,43999.0,43996.0,0.05273546]
[1704152205130,0.23321711,43999.0,43997.0,0.08088469]
[1704152205332,0.23321711,43999.0,43997.0,0.32814923]
[1704152205794,0.03217228,43998.0,43997.0,0.30514923]
[1704152206008,0.23321711,43998.0,43997.0,0.30514923]
[1704152206230,0.03217228,43999.0,43997.0,0.30514923]
[1704152206231,0.001,44000.0,43997.0,0.32814923]
[1704152206436,0.23421711,44000.0,43998.0,0.023]
[1704152206639,0.23421711,44000.0,43998.0,0.323]
[1704152206849,0.23421711,44000.0,43998.0,0.023]
[1704152206850,0.001,43999.0,43998.0,0.023]
[1704152207063,0.001,44000.0,43998.0,0.023]
[1704152207268,0.0456,44005.0,43999.0,0.0402142]
[1704152207479,0.23321711,44004.0,44000.0,0.023]
[1704152207890,0.23321711,44004.0,44000.0,0.0431071]
[1704152208086,0.23321711,44004.0,44001.0,0.0201071]
[1704152208224,0.23321711,44004.0,44002.0,0.023]
[1704152208428,0.05652,44010.0,44002.0,0.023]
[1704152208635,0.28973711,44010.0,44003.0,0.09328685]
[1704152208900,0.23321711,44009.0,44004.0,0.098]
[1704152209106,0.23321711,44009.0,44004.0,0.398]
[1704152209309,0.23321711,44009.0,44004.0,0.433845]
[1704152209716,0.23321711,44008.0,44004.0,0.323]
[1704152210064,0.23321711,44008.0,44004.0,0.042]
[1704152210312,0.23321711,44008.0,44004.0,0.023]
[1704152210748,0.23321711,44008.0,44004.0,0.042]
[1704152210957,0.23321711,44008.0,44005.0,0.035845]
[1704152211168,0.23421711,44008.0,44006.0,0.023]
[1704152211634,0.03217228,44005.0,44004.0,0.017]
[1704152211843,0.26538939,44005.0,44004.0,0.023]
[1704152212051,0.23321711,44005.0,44004.0,0.023]
[1704152212281,0.23321711,44005.0,44002.0,0.023]
[1704152212487,0.23321711,44004.0,44002.0,0.023]
[1704152213310,0.26538939,44004.0,44002.0,0.023]
[1704152213897,0.26538939,44004.0,44002.0,0.042]
[1704152214131,0.26538939,44004.0,44002.0,0.023]
[1704152214307,0.03217228,44004.0,44002.0,0.04]
[1704152214566,0.26538939,44003.0,44002.0,0.017]
[1704152214777,0.32700939,44003.0,44002.0,0.017]
[1704152214976,0.26538939,44003.0,44002.0,0.017]
[1704152215183,0.26264358,44003.0,44002.0,0.017]
[1704152215382,0.2304713,44003.0,44002.0,0.017]
[1704152215492,0.26264358,44003.0,44002.0,0.036]
[1704152215697,0.2304713,44003.0,44002.0,0.017]
[1704152216170,0.2304713,44003.0,44002.0,0.032]
[1704152216404,0.2304713,44003.0,44002.0,0.017]
[1704152216581,0.2304713,44003.0,44002.0,0.11545584]
[1704152216816,0.26538939,44003.0,44002.0,0.39845584]
[1704152216961,0.26538939,44003.0,44002.0,0.323]
[1704152217181,0.26538939,44003.0,44002.0,0.338]
[1704152218112,0.26544939,44003.0,44002.0,0.038]
[1704152218490,0.26644939,44003.0,44002.0,0.036]
[1704152218713,0.26544939,44003.0,44002.0,0.054]
[1704152219092,0.26544939,44003.0,44002.0,0.036]
[1704152219293,0.26544939,44003.0,44002.0,0.054]
[1704152219691,0.26444939,44003.0,44002.0,0.041]
[1704152220101,0.26444939,44003.0,44001.0,0.27969623]
[1704152220102,0.26544939,44003.0,44001.0,0.27969623]
[1704152220323,0.03117228,44002.0,44001.0,0.32183647]
[1704152220730,0.03117228,44002.0,44001.0,0.34911959]
[1704152221164,0.03117228,44002.0,44001.0,0.36111959]
[1704152221760,0.03217228,44002.0,44001.0,0.32397935]
[1704152222128,0.26538939,44002.0,44001.0,0.32397935]
[1704152222345,0.43354939,44002.0,44001.0,0.32397935]
[1704152223176,0.43360939,44002.0,44001.0,0.32397935]
[1704152223378,0.43360939,44002.0,44001.0,0.33597935]
[1704152223573,0.43460939,44002.0,44001.0,0.33597935]
[1704152224983,0.25617228,44001.0,44000.0,2.275]
[1704152225162,0.60302939,44001.0,44000.0,2.275]
[1704152225594,1.03502939,44001.0,44000.0,2.275]
[1704152226023,1.03502939,44001.0,44000.0,2.28010526]
[1704152226167,1.03502939,44001.0,44000.0,2.275]
[1704152226582,1.05002939,44001.0,44000.0,2.276]
[1704152226794,1.05002939,44001.0,43981.0,0.02371084]
[1704152226795,0.13117228,43982.0,43981.0,0.02371084]
[1704152226968,0.13117228,43982.0,43970.0,0.075]
[1704152226969,0.03117228,43975.0,43970.0,0.075]
[1704152227186,0.1,43986.0,43957.0,2.40381327]
[1704152227187,0.03117228,43973.0,43967.0,0.4601]
[1704152227547,0.03117228,43973.0,43971.0,0.075]
[1704152228377,0.002,43973.0,43972.0,0.075]